bitfinex/quotes_ETHUSD_20250603
["timestamp","ask_amount","ask_price","bid_price","bid_amount"]
[1748956900887,12.51613784,2623.2,2623.1,0.02]
[1748956902687,3.81183457,2623.5,2623.1,0.02]
[1748956902848,1.55233912,2623.5,2623.1,0.02]
[1748956903182,3.81197562,2623.4,2623.1,0.02]
[1748956903485,3.81158436,2623.6,2623.1,0.02]
[1748956903853,3.81172862,2623.5,2623.1,0.02]
[1748956904371,3.81187347,2623.4,2623.1,0.02]
[1748956905887,3.81200287,2623.3,2623.1,0.02]
[1748956906289,3.81192412,2623.4,2623.1,0.02]
[1748956906586,7.9,2623.7,2623.1,0.02]
[1748956906817,3.81190622,2623.4,2623.1,0.02]
[1748956906965,3.81200595,2623.3,2623.1,0.02]
[1748956907166,4.98271465,2623.6,2623.1,0.02]
[1748956907400,3.81191328,2623.4,2623.1,0.02]
[1748956907699,3.81203957,2623.3,2623.1,0.02]
[1748956908271,3.81204822,2623.3,2623.1,0.02]
[1748956908565,4.57443319,2623.3,2623.1,0.02]
[1748956908782,3.81213784,2623.2,2623.1,0.02]
[1748956909604,4.5744358,2623.3,2623.1,0.02]
[1748956909799,0.76238497,2623.3,2623.1,0.02]
[1748956910002,3.81213784,2623.2,2623.1,0.02]
[1748956910729,4.57449638,2623.3,2623.1,0.02]
[1748956911780,0.76238497,2623.3,2623.1,0.02]
[1748956911976,1.17112713,2623.6,2623.1,0.02]
[1748956912177,1.17112713,2623.6,2623.1,4.29730381]
[1748956912178,4.98275198,2623.6,2623.1,4.29730381]
[1748956913007,3.81170347,2623.5,2623.1,4.29730381]
[1748956913319,4.98275475,2623.6,2623.1,0.02]
[1748956915813,1.17112713,2623.6,2623.1,0.02]
[1748956916017,4.9827503,2623.6,2623.1,0.02]
[1748956917022,4.98276563,2623.6,2623.1,0.02]
[1748956918403,4.98276563,2623.6,2623.2,0.35940702]
[1748956918604,4.98276563,2623.6,2623.1,0.02]
[1748956918932,4.98276563,2623.6,2623.2,0.35938252]
[1748956919113,4.98276563,2623.6,2623.1,0.02]
[1748956919430,4.98276563,2623.6,2623.2,0.35938143]
[1748956919727,4.98276563,2623.6,2623.1,0.02]
[1748956919921,4.98276563,2623.6,2623.2,0.35943915]
[1748956920227,4.98276563,2623.6,2623.1,0.02]
[1748956920431,4.98276563,2623.6,2623.2,0.3594351]
[1748956920629,4.98276563,2623.6,2623.1,0.02]
[1748956920928,4.98276563,2623.6,2623.2,0.35945918]
[1748956921126,4.98276563,2623.6,2623.1,0.02]
[1748956921325,3.81180493,2623.5,2623.2,0.35945144]
[1748956921630,1.17112713,2623.6,2623.2,0.35946405]
[1748956921803,1.17112713,2623.6,2623.1,0.02]
[1748956922009,3.81155665,2623.6,2623.2,0.35946431]
[1748956922209,3.81155665,2623.6,2623.1,0.02]
[1748956922423,3.81155665,2623.6,2623.2,0.35945926]
[1748956922622,3.81155665,2623.6,2623.1,0.02]
[1748956922824,3.81155665,2623.6,2623.2,0.35945892]
[1748956923032,3.81155665,2623.6,2623.1,0.02]
[1748956923224,3.81155665,2623.6,2623.2,0.35947145]
[1748956923422,3.81155665,2623.6,2623.1,0.02]
[1748956923423,5.36385357,2623.6,2623.1,0.02]
[1748956923618,5.36385357,2623.6,2623.2,0.35947238]
[1748956923917,5.36385357,2623.6,2623.1,0.02]
[1748956924126,5.36385357,2623.6,2623.2,0.3594698]
[1748956924294,5.36385357,2623.6,2623.1,0.02]
[1748956924500,5.36385357,2623.6,2623.2,0.35945224]
[1748956924697,5.36385357,2623.6,2623.1,0.02]
[1748956924698,3.81194952,2623.4,2623.1,0.02]
[1748956924938,3.81213784,2623.2,2623.1,0.02]
[1748956927403,11.71213784,2623.2,2623.1,0.02]
[1748956930621,12.49523784,2623.2,2623.1,0.02]
[1748956931911,14.28323784,2623.2,2623.1,0.02]
[1748956932254,17.54221719,2623.2,2623.1,0.02]
[1748956935354,21.82174929,2623.2,2623.1,0.02]
[1748956937073,17.54221719,2623.2,2623.1,0.02]
[1748956939237,25.83074929,2623.2,2623.1,0.02]
[1748956939539,3.81359164,2622.2,2622.1,0.02]
[1748956939939,3.81325404,2622.5,2622.1,0.02]
[1748956939940,3.81328396,2622.5,2622.1,0.02]
[1748956940170,0.38576142,2622.8,2622.1,4.2995321]
[1748956940171,3.81336721,2622.4,2622.1,4.2995321]
[1748956940477,3.81351472,2622.3,2622.1,4.2995321]
[1748956940677,3.81351472,2622.3,2622.1,0.02]
[1748956940854,3.81350966,2622.3,2622.1,0.02]
[1748956941651,9.688,2623.2,2622.2,0.751]
[1748956941974,3.81301663,2622.6,2622.3,4.2795321]
[1748956942383,3.812779,2622.8,2622.4,0.751]
[1748956942866,3.81296257,2622.7,2622.4,0.751]
[1748956944242,3.81242851,2623.0,2622.4,0.751]
[1748956944585,3.81315538,2622.5,2622.4,0.751]
[1748956945747,3.81307366,2622.6,2622.4,0.751]
[1748956946787,3.81315538,2622.5,2622.4,0.751]
[1748956947077,3.81308828,2622.6,2622.4,0.751]
[1748956947647,1.17124285,2623.0,2622.4,0.751]
[1748956947852,3.81315538,2622.5,2622.4,0.751]
[1748956948358,3.81315538,2622.5,2622.4,1.11038185]
[1748956948570,3.81315538,2622.5,2622.4,1.11039763]
[1748956948860,3.81315538,2622.5,2622.4,0.751]
[1748956949485,3.81315538,2622.5,2622.3,0.8019]
[1748956949686,3.81309296,2622.6,2622.4,0.35943]
[1748956949860,3.81309296,2622.6,2622.3,0.8019]
[1748956950064,3.81302718,2622.6,2622.4,0.35943266]
[1748956950268,3.81317449,2622.5,2622.3,0.8019]
[1748956950577,3.81317449,2622.5,2622.4,0.35945963]
[1748956950771,3.81317449,2622.5,2622.3,0.8019]
[1748956951491,3.81330079,2622.4,2622.3,0.8019]
[1748956951691,3.81330079,2622.4,2622.3,1.16132317]
[1748956953199,3.81330079,2622.4,2622.3,0.8019]
[1748956953493,3.81330079,2622.4,2622.3,1.16144148]
[1748956954100,3.81325865,2622.5,2622.3,1.16144148]
[1748956954296,3.81325865,2622.5,2622.4,0.35954148]
[1748956954499,3.8130274,2622.6,2622.4,0.35954148]
[1748956954500,3.81308287,2622.6,2622.4,0.35954148]
[1748956955396,3.81287357,2622.7,2622.4,0.35954148]
[1748956955397,3.81294983,2622.7,2622.4,0.35954148]
[1748956955624,3.81280091,2622.8,2622.4,0.35954148]
[1748956956098,0.87116,2623.0,2622.6,4.2795321]
[1748956956271,7.9,2623.1,2622.7,1.15199553]
[1748956956472,3.81192724,2623.4,2623.0,4.2795321]
[1748956956800,3.81192724,2623.4,2623.1,0.7525]
[1748956959207,3.81192807,2623.4,2623.1,0.7525]
[1748956959396,0.8046,2623.7,2623.1,0.7525]
[1748956959603,3.81200452,2623.3,2623.1,0.7525]
[1748956960702,3.81195641,2623.4,2623.1,0.7525]
[1748956960999,3.81177177,2623.5,2623.1,0.7525]
[1748956961614,3.81185674,2623.4,2623.1,0.7525]
[1748956962880,3.81176577,2623.5,2623.1,0.7525]
[1748956963219,3.81185527,2623.4,2623.1,0.7525]
[1748956964486,3.81205204,2623.3,2623.1,0.7525]
[1748956967322,0.88751563,2623.4,2623.1,0.7525]
[1748956967519,4.69943952,2623.4,2623.1,0.7525]
[1748956967712,3.81201173,2623.3,2623.1,0.7525]
[1748956968425,3.81213784,2623.2,2623.1,0.7525]
[1748956968802,3.81233908,2623.1,2622.7,7.3095]
[1748956969000,3.81233908,2623.1,2622.8,0.35885537]
[1748956969198,3.81233908,2623.1,2622.9,0.35885537]
[1748956969425,3.81218163,2623.2,2622.7,7.3095]
[1748956969726,5.53111932,2623.6,2622.8,0.35892827]
[1748956969727,1.25158722,2623.6,2622.8,0.35892827]
[1748956970034,1.25158722,2623.6,2622.9,1.16742827]
[1748956970035,3.81186165,2623.4,2622.9,1.16742827]
[1748956970321,3.81177507,2623.5,2623.0,0.35892827]
[1748956970638,3.81188485,2623.4,2622.9,0.8085]
[1748956970832,3.81188485,2623.4,2623.0,0.35892569]
[1748956971005,3.81188485,2623.4,2622.9,0.8085]
[1748956971205,3.81188485,2623.4,2623.0,0.35893188]
[1748956971401,3.81188485,2623.4,2622.9,0.8085]
[1748956971726,3.81188485,2623.4,2623.0,0.35893282]
[1748956971928,3.81188485,2623.4,2622.9,0.8085]
[1748956972229,3.81188485,2623.4,2623.0,0.35898066]
[1748956972402,3.81188485,2623.4,2622.9,0.8085]
[1748956972604,3.81188485,2623.4,2623.0,0.35893713]
[1748956972817,3.81188485,2623.4,2622.9,0.8085]
[1748956973019,3.81188485,2623.4,2623.0,0.35893402]
[1748956973220,3.81188485,2623.4,2622.9,0.8085]
[1748956973430,3.81187329,2623.4,2623.0,0.35896297]
[1748956973596,3.81187329,2623.4,2622.9,0.8085]
[1748956973798,3.81187329,2623.4,2623.0,0.35897358]
[1748956974125,3.81187329,2623.4,2622.9,0.8085]
[1748956974438,3.81187329,2623.4,2623.0,0.35897327]
[1748956974646,3.81199932,2623.3,2622.9,0.8085]
[1748956974851,3.81199932,2623.3,2623.0,0.35898475]
[1748956975006,3.81199932,2623.3,2622.9,0.8085]
[1748956975211,3.81228317,2623.1,2623.0,0.35896547]
[1748956976916,3.81228317,2623.1,2622.9,0.8085]
[1748956977326,3.81242851,2623.0,2622.9,0.8085]
[1748956977545,3.81242851,2623.0,2622.9,1.16754354]
[1748956977858,3.81242851,2623.0,2622.9,0.35904354]
[1748956978953,3.81236154,2623.1,2622.9,0.35904354]
[1748956979160,0.50633283,2623.4,2623.0,0.35904354]
[1748956979318,3.81219377,2623.2,2622.7,5.0846321]
[1748956979517,3.81219377,2623.2,2622.8,0.35911139]
[1748956979718,3.8123572,2623.1,2622.9,0.35911139]
[1748956980019,3.8123572,2623.1,2623.0,0.35911139]
[1748956980222,3.8123572,2623.1,2622.8,0.35911139]
[1748956980421,2.04988722,2623.6,2622.9,0.35911139]
[1748956980422,3.81184722,2623.4,2622.9,0.35911139]
[1748956980620,3.81237063,2623.1,2623.0,0.35911139]
[1748956980869,3.81237063,2623.1,2622.8,0.35917671]
[1748956981021,3.81214055,2623.2,2622.9,0.35917671]
[1748956981349,3.81214055,2623.2,2622.7,11.5816321]
[1748956981350,3.81214055,2623.2,2623.0,0.35917671]
[1748956981551,3.81214055,2623.2,2623.1,0.35917671]
[1748956982773,1.25158722,2623.6,2623.1,1.18497671]
[1748956982974,3.81157156,2623.6,2623.2,0.35917671]
[1748956983189,11.71133011,2623.8,2623.2,0.35917671]
[1748956983190,3.81146539,2623.7,2623.2,0.35917671]
[1748956983381,3.81158708,2623.6,2623.2,0.35917671]
[1748956984079,3.81158708,2623.6,2623.3,0.3593734]
[1748956984278,3.81158708,2623.6,2623.4,0.3593734]
[1748956984480,7.9,2623.8,2623.5,4.2795321]
[1748956984651,7.9,2623.8,2623.7,5.0578321]
[1748956984857,7.9,2623.8,2623.7,5.4172712]
[1748956985056,7.9,2623.8,2623.7,11.9122712]
[1748956985938,7.9,2623.8,2623.7,7.6327391]
[1748956987961,7.9,2623.8,2623.7,7.63220911]
[1748956988368,7.9,2623.8,2623.7,7.63120911]
[1748956988909,11.7112661,2623.8,2623.7,1.13720911]
[1748956989089,7.9,2623.8,2623.7,5.41674121]
[1748956989261,7.9,2623.8,2623.7,1.13720911]
[1748956989469,3.81113523,2623.9,2623.7,7.63020911]
[1748956989675,3.81113523,2623.9,2623.8,0.35890911]
[1748956990318,3.81113523,2623.9,2623.7,7.2713]
[1748956990609,3.81071126,2624.2,2623.5,0.7561]
[1748956990815,3.81143432,2623.7,2623.6,0.35866353]
[1748956991814,3.81143432,2623.7,2623.3,0.8182]
[1748956991815,3.81160253,2623.6,2623.3,0.8182]
[1748956991970,3.81160253,2623.6,2623.4,0.35868828]
[1748956992177,3.81160253,2623.6,2623.5,0.35868828]
[1748956993909,3.81149642,2623.7,2623.5,0.35868828]
[1748956994101,4.56835994,2624.1,2623.3,0.8182]
[1748956994302,3.81132918,2623.8,2623.4,0.35869836]
[1748956994501,3.81132918,2623.8,2623.5,0.35869836]
[1748956994702,1.5339892,2624.0,2623.6,0.35863743]
[1748956994703,5.34509247,2624.0,2623.6,0.35863743]
[1748956994897,3.81154219,2623.7,2623.3,0.8182]
[1748956995098,3.81162848,2623.6,2623.4,0.3586242]
[1748956995319,3.81170192,2623.5,2623.2,6.491]
[1748956995620,3.8111187,2624.0,2623.4,4.2795321]
[1748956995790,3.8111187,2624.0,2623.5,0.35861852]
[1748956995791,3.81111863,2624.0,2623.5,0.35861852]
[1748956996114,3.8109756,2624.0,2623.6,0.35861852]
[1748956996289,0.76218609,2624.0,2623.7,0.35857053]
[1748956996494,3.81091264,2624.1,2623.5,0.8238]
[1748956996818,3.81091264,2624.1,2623.6,0.35854254]
[1748956997015,3.81091264,2624.1,2623.7,0.35854254]
[1748956997225,3.81091264,2624.1,2623.5,0.8238]
[1748956997226,3.81089756,2624.1,2623.5,0.8238]
[1748956997521,3.81099653,2624.0,2623.6,0.35851107]
[1748956997719,3.81099653,2624.0,2623.7,0.35851107]
[1748956997922,3.81099653,2624.0,2623.5,0.8238]
[1748956998082,3.81099653,2624.0,2623.6,0.35852231]
[1748956998283,3.8108991,2624.1,2623.7,0.35852231]
[1748956998478,4.65607385,2624.1,2623.5,0.8238]
[1748956998721,4.65607385,2624.1,2623.6,0.35849391]
[1748956998921,4.65607385,2624.1,2623.7,0.35849391]
[1748956999119,4.65607385,2624.1,2623.5,0.8238]
[1748956999421,7.9,2624.4,2623.7,0.8299]
[1748956999630,3.81074717,2624.2,2623.8,0.35853832]
[1748956999826,3.81074717,2624.2,2623.7,7.3189]
[1748957000016,3.81074717,2624.2,2623.8,0.35852096]
[1748957000195,3.81086241,2624.1,2623.7,7.3189]
[1748957000396,3.81075841,2624.2,2623.8,0.35850746]
[1748957000609,1.55213588,2624.2,2623.7,7.3189]
[1748957000811,3.81064798,2624.3,2623.8,0.35850393]
[1748957001022,3.81064798,2624.3,2623.7,7.3189]
[1748957001331,3.81074586,2624.2,2623.8,0.35848184]
[1748957001526,3.81074586,2624.2,2623.7,7.3189]
[1748957001718,11.71040824,2624.4,2623.8,0.35846669]
[1748957002030,3.81069948,2624.2,2623.7,7.3189]
[1748957002225,3.81069948,2624.2,2623.8,0.35846591]
[1748957002449,3.81054224,2624.3,2623.7,7.3189]
[1748957002728,3.81056533,2624.3,2623.8,0.35845647]
[1748957002906,3.81056533,2624.3,2623.7,7.3189]
[1748957003090,3.81056533,2624.3,2623.8,0.35845843]
[1748957003291,3.81056533,2624.3,2623.7,7.3189]
[1748957003494,3.81056533,2624.3,2623.8,0.35843551]
[1748957003826,3.81056533,2624.3,2623.7,7.3189]
[1748957004126,11.71039692,2624.4,2623.8,0.35845394]
[1748957004127,7.9,2624.4,2623.8,0.35845394]
[1748957004327,7.9,2624.4,2623.7,7.3189]
[1748957004528,7.9,2624.4,2623.8,0.35847824]
[1748957004529,3.81098494,2624.0,2623.8,0.35847824]
[1748957004839,3.8108884,2624.1,2623.7,7.3189]
[1748957005134,3.81104687,2624.0,2623.8,0.35851905]
[1748957005441,3.81104687,2624.0,2623.7,0.8299]
[1748957005601,3.81104687,2624.0,2623.8,0.3585932]
[1748957005802,3.81104687,2624.0,2623.7,0.8299]
[1748957006004,3.81083037,2624.1,2623.8,0.35869143]
[1748957006202,3.8110416,2624.0,2623.7,0.8299]
[1748957006412,3.8110416,2624.0,2623.8,0.35869564]
[1748957006617,3.8110416,2624.0,2623.7,0.8299]
[1748957006838,3.8110416,2624.0,2623.8,0.35875762]
[1748957007004,3.8110416,2624.0,2623.7,0.8299]
[1748957007205,3.8110416,2624.0,2623.8,0.35870099]
[1748957007418,3.8110416,2624.0,2623.7,0.8299]
[1748957007619,3.8110416,2624.0,2623.8,0.35870654]
[1748957007918,3.8110416,2624.0,2623.7,0.8299]
[1748957008137,3.8110416,2624.0,2623.8,0.35878625]
[1748957008444,3.81078713,2624.2,2623.9,0.35879545]
[1748957008599,3.81078713,2624.2,2623.7,0.8299]
[1748957008800,3.81078713,2624.2,2623.8,0.35887609]
[1748957009043,3.81078713,2624.2,2623.9,0.35887609]
[1748957009216,3.81057974,2624.3,2623.7,0.8299]
[1748957009416,3.81060614,2624.3,2623.8,0.35890079]
[1748957009618,3.8108368,2624.1,2623.9,0.35890079]
[1748957009819,3.8108368,2624.1,2623.7,0.8299]
[1748957010013,3.8108368,2624.1,2623.8,0.35905757]
[1748957010232,3.8108368,2624.1,2623.9,0.35905757]
[1748957010535,3.8108368,2624.1,2623.7,0.8299]
[1748957010738,3.81081527,2624.2,2623.8,0.35906533]
[1748957011045,3.81081527,2624.2,2623.7,0.8299]
[1748957011046,3.81083667,2624.1,2623.9,0.35906533]
[1748957011245,3.81083667,2624.1,2623.7,0.8299]
[1748957011405,3.81083667,2624.1,2623.8,0.35919799]
[1748957011610,3.81083667,2624.1,2623.9,0.35919799]
[1748957011805,3.81083667,2624.1,2623.7,0.8299]
[1748957012059,3.81083667,2624.1,2623.8,0.35920045]
[1748957012377,8.6955,2624.4,2623.6,6.485]
[1748957012378,8.6955,2624.4,2623.9,0.35920045]
[1748957012573,3.8109756,2624.0,2623.6,6.484]
[1748957012774,3.8109756,2624.0,2623.7,0.3593698]
[1748957012949,3.8109756,2624.0,2623.8,0.3593698]
[1748957013285,3.81086554,2624.1,2623.9,0.3593698]
[1748957013455,3.81083037,2624.1,2624.0,0.3593698]
[1748957014276,3.81083037,2624.1,2623.7,0.3593698]
[1748957014439,3.81083037,2624.1,2623.8,0.3593698]
[1748957014770,3.81083037,2624.1,2623.9,0.3593698]
[1748957014972,3.81064495,2624.3,2624.0,0.3593698]
[1748957015172,3.81076542,2624.2,2624.0,0.3593698]
[1748957015478,3.81083037,2624.1,2624.0,0.3593698]
[1748957016174,3.81083037,2624.1,2624.0,0.35957888]
[1748957017077,5.76285585,2624.3,2624.0,0.35957888]
[1748957017277,3.81073619,2624.2,2624.1,0.35957888]
[1748957018082,3.8108641,2624.1,2623.9,0.7964]
[1748957018293,3.8108641,2624.1,2624.0,0.35955107]
[1748957018443,3.8108641,2624.1,2624.0,0.32955107]
[1748957020061,3.8108641,2624.1,2623.9,0.7964]
[1748957020258,8.6955,2624.4,2623.9,0.7964]
[1748957020595,3.80944,2625.1,2624.3,4.2795321]
[1748957020816,4.63847699,2625.2,2624.4,7.299]
[1748957021100,3.80916001,2625.3,2624.8,0.7588]
[1748957021994,3.80916001,2625.3,2624.5,4.2795321]
[1748957021995,3.80927318,2625.2,2624.5,4.2795321]
[1748957022207,3.80961098,2625.0,2624.6,6.48]
[1748957022410,3.80945012,2625.1,2624.6,6.48]
[1748957022772,3.80945012,2625.1,2624.3,5.14848836]
[1748957022773,3.8095881,2625.0,2624.7,6.48]
[1748957023407,3.8095881,2625.0,2624.3,5.14848836]
[1748957023408,3.82970109,2624.9,2624.3,0.86895626]
[1748957023592,3.82971786,2624.9,2624.4,6.48]
[1748957023797,3.8100284,2624.7,2624.4,6.48]
[1748957024097,3.8100284,2624.7,2624.1,4.2795321]
[1748957024298,3.8100284,2624.7,2624.2,6.479]
[1748957024494,3.80987407,2624.8,2624.2,6.479]
[1748957024803,3.80997185,2624.7,2624.2,6.479]
[1748957025009,3.8102732,2624.5,2624.3,7.2605]
[1748957025310,3.8102732,2624.5,2624.3,0.7825]
[1748957025667,3.8102732,2624.5,2624.3,7.2605]
[1748957026109,3.81012521,2624.6,2624.3,0.7825]
[1748957026406,3.81021727,2624.6,2624.3,0.7825]
[1748957026915,3.81026368,2624.5,2624.3,0.7825]
[1748957027119,3.80981408,2624.8,2624.0,0.7988]
[1748957027423,3.81064271,2624.3,2623.7,0.7988]
[1748957027628,3.81083816,2624.1,2623.7,7.2758]
[1748957028080,3.81074945,2624.2,2623.7,0.7988]
[1748957028286,3.81091343,2624.1,2623.7,7.2758]
[1748957029120,3.81063422,2624.3,2623.7,7.2758]
[1748957029329,3.81072027,2624.2,2623.7,7.2758]
[1748957029511,3.81063422,2624.3,2623.7,11.5553321]
[1748957029512,3.81062327,2624.3,2623.7,11.5553321]
[1748957029694,3.81043046,2624.4,2623.7,11.5553321]
[1748957030028,3.81054543,2624.3,2623.7,11.5553321]
[1748957030322,0.764,2624.7,2623.7,10.7565321]
[1748957030628,3.8105123,2624.4,2623.8,1.12644199]
[1748957030862,3.81016491,2624.6,2623.9,4.63837409]
[1748957031016,3.81048431,2624.4,2624.0,0.35884199]
[1748957031216,3.81048431,2624.4,2624.1,0.35884199]
[1748957031414,3.81048431,2624.4,2624.2,0.35884199]
[1748957031729,3.81048431,2624.4,2623.9,4.2795321]
[1748957031932,3.81048431,2624.4,2624.0,0.35883959]
[1748957032089,3.81048431,2624.4,2624.1,0.35883959]
[1748957032294,1.49,2624.7,2624.2,0.35883959]
[1748957032632,3.81017927,2624.6,2624.0,0.8048]
[1748957032938,3.81017927,2624.6,2624.1,0.35883319]
[1748957032939,3.81031863,2624.5,2624.1,0.35883319]
[1748957033229,3.81031863,2624.5,2624.2,0.35883319]
[1748957033412,3.81015465,2624.6,2624.3,0.35883319]
[1748957033613,3.81015465,2624.6,2624.4,0.35883319]
[1748957033614,4.19112581,2624.6,2624.4,0.35883319]
[1748957033818,3.81011034,2624.6,2624.0,0.8048]
[1748957034020,3.81011034,2624.6,2624.1,0.35877454]
[1748957034192,3.80985852,2624.8,2624.2,0.35877454]
[1748957034396,3.80985852,2624.8,2624.3,5.41460664]
[1748957034635,3.8297545,2624.9,2624.4,0.35877454]
[1748957034811,3.8297545,2624.9,2624.5,0.35877454]
[1748957035013,3.8297545,2624.9,2624.3,11.5308321]
[1748957035213,3.8098212,2624.8,2624.4,0.35870676]
[1748957035539,0.02,2624.9,2624.5,0.35870676]
[1748957035847,3.82969021,2624.9,2624.3,11.5308321]
[1748957036012,3.80984103,2624.8,2624.4,0.35865579]
[1748957036214,3.80984103,2624.8,2624.5,6.83265579]
[1748957036435,3.80984103,2624.8,2624.6,0.35865579]
[1748957036603,3.82972829,2624.9,2624.6,0.35865579]
[1748957037418,0.02,2624.9,2624.7,0.8229]
[1748957039013,3.80981408,2624.8,2624.7,0.8229]
[1748957039218,3.81004623,2624.7,2624.5,6.472]
[1748957039455,3.80989473,2624.8,2624.6,0.35884062]
[1748957039614,3.80989473,2624.8,2624.5,6.472]
[1748957039819,3.80995923,2624.7,2624.6,0.35888624]
[1748957040019,3.80995923,2624.7,2624.6,0.35888049]
[1748957040246,0.88127655,2624.7,2624.4,6.472]
[1748957040420,1.19296592,2624.9,2624.5,0.35889992]
[1748957040748,3.80981408,2624.8,2624.4,6.472]
[1748957040948,3.80995923,2624.7,2624.5,0.35890814]
[1748957041148,3.80995923,2624.7,2624.1,2.5548]
[1748957041149,3.80995923,2624.7,2624.3,6.472]
[1748957041355,3.80988798,2624.8,2624.4,0.35892665]
[1748957041562,3.80988798,2624.8,2624.5,0.35892665]
[1748957041716,3.80988798,2624.8,2624.3,6.472]
[1748957042041,0.02,2624.9,2624.4,0.35891855]
[1748957042258,3.81021249,2624.6,2624.5,0.35891855]
[1748957042465,3.81021249,2624.6,2624.4,0.35891855]
[1748957042675,3.81021249,2624.6,2624.3,6.471]
[1748957042975,3.81021249,2624.6,2624.4,0.35896088]
[1748957043172,3.81021249,2624.6,2624.5,0.35896088]
[1748957043395,3.81028823,2624.5,2624.1,0.7898]
[1748957043577,3.81028823,2624.5,2624.2,6.83004103]
[1748957043774,3.81028823,2624.5,2624.3,0.35904103]
[1748957043935,3.81028823,2624.5,2624.4,0.35904103]
[1748957044461,3.81018951,2624.6,2624.4,0.35904103]
[1748957044660,3.81018951,2624.6,2624.5,0.35904103]
[1748957044876,3.81028662,2624.5,2624.2,0.35911535]
[1748957045050,3.81028662,2624.5,2624.3,0.35911598]
[1748957045256,3.81018637,2624.6,2624.4,0.35911598]
[1748957045455,3.81018637,2624.6,2624.5,0.35911598]
[1748957045658,3.81018637,2624.6,2624.2,0.35911598]
[1748957045961,3.81027407,2624.5,2624.3,0.35911598]
[1748957046167,3.81018503,2624.6,2624.4,0.35911598]
[1748957046364,3.81018503,2624.6,2624.5,0.35911598]
[1748957046781,3.81018503,2624.6,2624.1,0.7898]
[1748957047080,3.81018503,2624.6,2624.2,6.82838457]
[1748957047278,0.8317,2624.7,2624.3,0.35938457]
[1748957047279,4.64172554,2624.7,2624.3,0.35938457]
[1748957047579,3.81002554,2624.7,2624.3,0.35938457]
[1748957049282,3.80981851,2624.8,2624.4,0.35938457]
[1748957049283,3.81011035,2624.6,2624.4,0.35938457]
[1748957049455,3.81011035,2624.6,2624.5,0.35938457]
[1748957049666,3.81011035,2624.6,2624.3,0.35938457]
[1748957049873,3.81011035,2624.6,2624.4,0.35938457]
[1748957050068,3.81011035,2624.6,2624.5,0.35938457]
[1748957050274,3.81011035,2624.6,2624.2,0.35954159]
[1748957050275,3.81024957,2624.5,2624.2,0.35954159]
[1748957050470,3.81024957,2624.5,2624.3,0.35955103]
[1748957050798,3.81024957,2624.5,2624.4,0.35955103]
[1748957051090,3.81031548,2624.5,2624.4,0.35964623]
[1748957051458,3.81031548,2624.5,2624.2,0.35964623]
[1748957051663,3.81031548,2624.5,2624.3,0.35964623]
[1748957051899,3.81031548,2624.5,2624.4,0.35964623]
[1748957052595,3.8101818,2624.6,2624.4,0.35964623]
[1748957052901,3.8101818,2624.6,2624.5,0.35964623]
[1748957053476,3.8101818,2624.6,2624.2,0.35964623]
[1748957053786,3.8101818,2624.6,2624.3,0.35964623]
[1748957053987,3.8101818,2624.6,2624.4,0.35964623]
[1748957054188,3.8101818,2624.6,2624.5,0.35964623]
[1748957054694,3.8101818,2624.6,2624.2,0.35964623]
[1748957054897,3.8101818,2624.6,2624.1,0.7898]
[1748957055087,3.8101818,2624.6,2624.2,0.35970709]
[1748957055282,3.8101818,2624.6,2624.3,0.35970709]
[1748957055477,3.8101818,2624.6,2624.4,0.35970709]
[1748957055671,3.8101818,2624.6,2624.5,0.35970709]
[1748957056997,4.57219733,2624.6,2624.5,0.35970709]
[1748957057433,4.57219733,2624.6,2623.8,6.0445321]
[1748957057434,1.52871553,2624.6,2623.8,1.37866043]
[1748957057724,3.81069083,2624.2,2623.9,0.35983372]
[1748957057868,3.81069083,2624.2,2623.8,0.7794]
[1748957057869,3.81078406,2624.2,2624.0,0.35983372]
[1748957058069,3.81078406,2624.2,2624.1,0.35983372]
[1748957058270,3.81078406,2624.2,2623.9,0.35994508]
[1748957058271,3.81085859,2624.1,2623.9,0.35994508]
[1748957058494,3.81107598,2624.0,2623.6,7.2444]
[1748957058692,3.81107598,2624.0,2623.7,0.35995987]
[1748957059007,4.59343925,2624.2,2623.8,0.35997908]
[1748957059008,3.81112085,2623.9,2623.8,0.35997908]
[1748957059183,3.81092353,2624.1,2623.8,0.35997908]
[1748957059184,3.81105492,2624.0,2623.8,0.35997908]
[1748957059370,3.81105492,2624.0,2623.9,0.35997908]
[1748957062080,4.59342568,2624.2,2623.9,0.35997908]
[1748957062290,3.8109756,2624.0,2623.6,0.7794]
[1748957062613,3.8109756,2624.0,2623.7,0.35962871]
[1748957062812,3.8109756,2624.0,2623.8,0.35962871]
[1748957062995,3.8109121,2624.1,2623.9,0.35960043]
[1748957063207,0.76201553,2624.6,2623.6,0.7794]
[1748957063208,3.81041503,2624.4,2624.0,0.35950211]
[1748957063375,4.34321809,2624.4,2623.6,5.0589321]
[1748957063576,3.81068887,2624.2,2623.7,0.35948865]
[1748957063775,3.81068887,2624.2,2623.8,0.35948865]
[1748957063976,3.81068887,2624.2,2623.9,0.35948865]
[1748957064177,3.81068887,2624.2,2624.0,0.35948865]
[1748957064377,3.81068887,2624.2,2623.6,5.0589321]
[1748957064602,3.81068887,2624.2,2623.7,0.3594442]
[1748957064806,3.81068887,2624.2,2623.8,0.3594442]
[1748957065011,3.81068887,2624.2,2623.9,0.3594442]
[1748957065210,3.81068887,2624.2,2624.0,0.3594442]
[1748957065415,3.81068887,2624.2,2623.6,5.0589321]
[1748957065586,3.81068887,2624.2,2623.7,0.35941944]
[1748957065788,0.798,2624.5,2623.8,0.35941944]
[1748957066016,3.81094104,2624.1,2623.9,0.35941944]
[1748957066212,0.798,2624.5,2623.6,0.7794]
[1748957066426,3.81082318,2624.2,2623.7,0.35941131]
[1748957066582,3.81082318,2624.2,2623.8,0.35941131]
[1748957066782,3.81084834,2624.1,2623.9,0.35941131]
[1748957066996,3.81077108,2624.2,2623.6,0.7794]
[1748957067192,3.81077108,2624.2,2623.7,0.35936743]
[1748957067393,3.81069412,2624.2,2623.8,0.35936743]
[1748957067594,3.81069412,2624.2,2623.9,0.35936743]
[1748957067595,3.81070324,2624.2,2623.9,0.35936743]
[1748957067782,3.81103877,2624.0,2623.7,6.462]
[1748957067981,3.81103877,2624.0,2623.8,0.35937263]
[1748957068182,3.81103877,2624.0,2623.9,0.35937263]
[1748957068496,3.8107996,2624.2,2623.9,0.35937263]
[1748957068700,3.8107996,2624.2,2623.7,6.462]
[1748957068903,0.798,2624.5,2623.7,6.462]
[1748957068904,3.81062632,2624.3,2623.8,1.08352269]
[1748957069104,3.81062632,2624.3,2623.9,0.35938269]
[1748957069426,3.81062632,2624.3,2624.0,0.35938269]